Cogmind - Beta 11.1 @@@ ROGUE MODE // 2022.05.13 @ 00:33:54 Player: RX86 Result: Destroyed by H-55 Commando with Gauss Rifle Performance ------------- Evolutions (2) 1000 Regions Visited (4) 800 Robots Destroyed (10) 50 Value Destroyed (193) 193 Prototype IDs (1) 20 Alien Tech Used (0) 0 Bonus (26) 26 TOTAL SCORE: 2089 Bonus ------- High Alert Combat Kills 26 Cogmind --------- Core Integrity 0/550 Matter 274/300 Energy 265/265 System Corruption 0% Temperature Cool (0) Movement Core (250) Ox4 Location -8/Materials Parts ------- > --- POWER (1) -------- Improved Ion Engine > --- PROPULSION (3) --- (None) > --- UTILITY (5) ------ ECM Suite Improved Power Shielding > --- WEAPON (2) ------- Makeshift Spear > --- INVENTORY (5) ---- Decoy Drone Bay (16/16) Peak State ------------ > --- POWER ------------ Improved Ion Engine > --- PROPULSION ------- Aluminum Leg Aluminum Leg > --- UTILITY ---------- Improved Sensor Array ECM Suite Improved Power Shielding Decoy Drone Bay > --- WEAPON ----------- Mini Grenade Launcher Makeshift Spear > --- INVENTORY -------- (None) [Rating: 31] Favorites ----------- Power Light Ion Engine Engine Light Ion Engine Propulsion Flight Unit Leg Aluminum Leg Hover Unit Hover Unit Flight Unit Flight Unit Utility Propulsion Shielding Device ECM Suite Storage Small Storage Unit Hackware Hacking Suite Protection Propulsion Shielding Weapon Assault Rifle Energy Gun EM Pulse Gun Ballistic Gun Assault Rifle Launcher Grenade Launcher Special Weapon Plasma Cutter Impact Weapon Heavy Hammer Piercing Weapon Makeshift Spear Special Melee Weapon Datajack Build | -11 -10 -9 -9 -8 ------- Run | Scr Mat Mat Min Mat Slots Evolved 4 | . . 2 . 2 Power . | . . . . . Propulsion 1 | . . 1 . . Utility 3 | . . 1 . 2 Weapon . | . . . . . Parts Attached 45 | 6 15 2 4 18 Power 4 | 1 1 . . 2 Engine 4 | 1 1 . . 2 Core . | . . . . . Reactor . | . . . . . Propulsion 12 | 2 5 1 1 3 Treads . | . . . . . Leg 4 | 2 . . . 2 Wheel . | . . . . . Hover 2 | . 2 . . . Flight 6 | . 3 1 1 1 Utility 14 | 1 2 1 1 9 Device 8 | . 1 1 . 6 Storage 2 | 1 . . 1 . Processor . | . . . . . Hackware 1 | . . . . 1 Protection 3 | . 1 . . 2 Artifact . | . . . . . Weapon 15 | 2 7 . 2 4 Energy Gun 2 | . 2 . . . Energy Cannon . | . . . . . Ballistic Gun 3 | 2 1 . . . Ballistic Cannon . | . . . . . Launcher 6 | . 2 . 1 3 Special Weapon 1 | . . . 1 . Impact Weapon 1 | . 1 . . . Slashing Weapon . | . . . . . Piercing Weapon 1 | . . . . 1 Special Melee Weapon 1 | . 1 . . . Unidentified Prototypes 1 | . . . . 1 Parts Lost 17 | . 5 . . 12 Power 3 | . 1 . . 2 Propulsion 7 | . 2 . . 5 Utility 4 | . . . . 4 Weapon 3 | . 2 . . 1 Highest Loss Streak 11 | . 3 . . 11 To Critical Strikes . | . . . . . Average Slot Usage (%) 79 | . 79 84 88 65 Engine 11 | . 13 11 11 6 Leg 6 | . 14 . . 2 Hover 1 | . 4 . . . Flight 19 | . 9 31 33 14 Device 11 | . 3 20 13 20 Storage 5 | . 9 . 2 4 Protection 8 | . 4 11 11 9 Energy Gun 1 | . 3 . . . Ballistic Gun 5 | . 13 . . . Launcher 2 | . 1 . 5 2 Special Weapon 2 | . . . 8 . Impact Weapon 2 | . 1 11 2 . Naked Turns . | . . . . . Heaviest Build 29 | 14 14 10 12 29 Greatest Support 20 | 20 20 12 12 20 Greatest Overweight (x) 9 | 4 2 . . 9 Average Overweight (x) . | . . . . . Largest Inventory Capacity 8 | 8 8 5 8 8 Average Capacity 6 | 7 6 5 5 6 Most Carried 8 | 2 8 5 6 8 Average Carried 4 | . 5 4 5 4 Final Capacity 8 | 8 5 5 8 5 Final Carried 6 | 2 5 5 6 2 Class Distribution -------------------- 81% | Mutant 18% | Sprinter Dominant Class ---------------- Mutant | -10/Materials Mutant | -9/Materials Sprinter | -9/Mines Mutant | -8/Materials Resources | -11 -10 -9 -9 -8 ----------- Run | Scr Mat Mat Min Mat Matter Collected 686 | 205 . . 264 217 Remotely . | . . . . . Salvage Created 170 | . 12 . . 158 Parts 14 | . 3 . . 11 Haulers Intercepted . | . . . . . Recyclers Shooed 1 | . . . . 1 Parts Field Recycled . | . . . . . Retrieved Matter . | . . . . . Parts Self-Destructed . | . . . . . Prevented . | . . . . . Kills | -11 -10 -9 -9 -8 ------- Run | Scr Mat Mat Min Mat Combat Hostiles Destroyed 8 | . 3 . . 5 AOE 8 | . 3 . . 5 Classes Destroyed 5 | . 1 . . 4 Builder 1 | . . . . 1 Recycler 1 | . . . . 1 Swarmer 6 | . 3 . . 3 Grunt 1 | . . . . 1 Sentry 1 | . . . . 1 Best Kill Streak 6 | . 3 . . 6 Combat Bots Only 5 | . 3 . . 5 Max Kills in Single Turn 3 | . 1 . . 3 Gunslinging . | . . . . . Exploded 3 | . 1 . . 3 Melee . | . . . . . Uniques/NPCs Destroyed . | . . . . . Combat | -11 -10 -9 -9 -8 -------- Run | Scr Mat Mat Min Mat Damage Taken 1804 | . 470 28 20 1286 Core 720 | . 131 28 . 561 Absorbed by Shields . | . . . . . Redirected to Shielding 72 | . 8 . . 64 Core Remaining (%) 80 | 100 47 . 93 . Volleys Fired 23 | . 15 . 3 5 Largest 2 | . 2 . 1 1 Hottest 40 | . 40 . 20 30 Shots Fired 25 | . 17 . 3 5 Gun 7 | . 7 . . . Cannon . | . . . . . Launcher 15 | . 10 . . 5 Special 3 | . . . 3 . Kinetic 4 | . 4 . . . Thermal 3 | . . . 3 . Explosive 15 | . 10 . . 5 Electromagnetic 3 | . 3 . . . Robot Hit Streak 1 | . 1 . . 1 Robot Miss Streak 7 | . 4 . 7 . Penetration Max . | . . . . . Secondary Targets . | . . . . . Shots Hit Robots 9 | . 4 . . 5 Core Hits 18 | . 3 . . 15 Critical Kills . | . . . . . Critical Parts Destroyed . | . . . . . Critical Strikes . | . . . . . Melee Attacks 14 | . 4 4 . 6 Impact 6 | . 2 4 . . Slashing . | . . . . . Piercing 6 | . . . . 6 Sneak Attacks 2 | . 2 . . . Combat Hostiles . | . . . . . Follow-up Attacks . | . . . . . Damage Inflicted 798 | . 200 . . 598 Guns 37 | . 37 . . . Cannons . | . . . . . Explosions 657 | . 163 . . 494 Melee 104 | . . . . 104 Ramming . | . . . . . Kinetic 15 | . 15 . . . Thermal 147 | . 147 . . . Explosive 510 | . 16 . . 494 Electromagnetic 22 | . 22 . . . Impact . | . . . . . Slashing . | . . . . . Piercing 104 | . . . . 104 Highest Corruption . | . . . . . Average Corruption . | . . . . . Corruption Purged . | . . . . . Corruption Blocked . | . . . . . Overload Shots . | . . . . . Overflow Damage 98 | . 63 . . 35 Projectiles . | . . . . . Explosions 98 | . 63 . . 35 Melee . | . . . . . Knockbacks . | . . . . . Impact . | . . . . . Kinetic . | . . . . . Secondary . | . . . . . Self-Inflicted Damage 116 | . 70 . . 46 Shots 6 | . 4 . . 2 Rammed . | . . . . . Targets Rammed . | . . . . . Kicked . | . . . . . Crushed . | . . . . . Highest Temperature 12 | . 12 . . . Average Temperature 4 | . 4 . . . Received Heat Transfer 480 | . 147 9 6 318 Siege Activations . | . . . . . Robots Corrupted . | . . . . . Combat Hostiles . | . . . . . Parts Fried . | . . . . . Impact Corruptions . | . . . . . Robots Melted . | . . . . . Combat Hostiles . | . . . . . Parts Melted . | . . . . . Heat Transferred 100 | . 100 . . . Parts Sabotaged . | . . . . . Parts Stolen . | . . . . . Parts Stripped . | . . . . . Power Chain Reactions . | . . . . . Missiles Intercepted . | . . . . . Alert | -11 -10 -9 -9 -8 ------- Run | Scr Mat Mat Min Mat Peak Influence 507 | . 419 280 329 507 Initial 133 | . . 117 109 133 Average 174 | . 116 166 210 315 Maximum Alert Level 2 | . 2 1 1 2 Low Security (%) 55 | 100 69 79 30 28 Level 1 33 | . 20 20 69 35 Level 2 10 | . 9 . . 36 Level 3 . | . . . . . Level 4 . | . . . . . Level 5 . | . . . . . High Security . | . . . . . Max Security . | . . . . . Squads Dispatched 6 | . 2 1 . 3 Investigation 1 | . . 1 . . Extermination . | . . . . . Reinforcement 5 | . 2 . . 3 Assault . | . . . . . Garrison . | . . . . . Intercept . | . . . . . Searches Triggered . | . . . . . Construction Impeded . | . . . . . Haulers Reinforced . | . . . . . Active Scanning Responses . | . . . . . Cargo Convoy Interrupts . | . . . . . Stealth | -11 -10 -9 -9 -8 --------- Run | Scr Mat Mat Min Mat Distress Signals 1 | . . . . 1 Communications Jammed . | . . . . . Distress Signals . | . . . . . Times Spotted 78 | . 25 9 17 27 Peak Tracking Total 9 | . 9 5 5 9 Tactical Retreats 16 | . 4 2 6 4 Traps | -11 -10 -9 -9 -8 ------- Run | Scr Mat Mat Min Mat Traps Triggered 2 | . . 1 . 1 Indirectly . | . . . . . Trap Hack Attempts . | . . . . . Triggered . | . . . . . Disarmed . | . . . . . Reprogrammed . | . . . . . Reused . | . . . . . Traps Extracted . | . . . . . Installed . | . . . . . Triggered . | . . . . . Most Traps Carried 1 | . . . 1 1 Machines | -11 -10 -9 -9 -8 ---------- Run | Scr Mat Mat Min Mat Machines Disabled 3 | . 3 . . . Max in Single Turn 2 | . 2 . . . Machines Sabotaged . | . . . . . Garrisons Compromised . | . . . . . Overloaded Fab Kills . | . . . . . Hacking | -11 -10 -9 -9 -8 --------- Run | Scr Mat Mat Min Mat Machines Accessed 13 | . 4 6 1 2 Terminals 10 | . 4 4 . 2 Fabricators . | . . . . . Repair Stations . | . . . . . Recycling Units 2 | . . 2 . . Scanalyzers . | . . . . . Garrison Access . | . . . . . Total Hacks 47 | . 20 18 1 8 Successful 25 | . 9 10 1 5 Failed 22 | . 11 8 . 3 Catastrophic 6 | . 5 . . 1 Database Lockouts . | . . . . . Manual 16 | . 10 4 . 2 Terminals 40 | . 20 12 . 8 Fabricators . | . . . . . Repair Stations . | . . . . . Recycling Units 6 | . . 6 . . Scanalyzers . | . . . . . Garrison Access . | . . . . . Terminal Hacks 21 | . 9 6 1 5 Record 11 | . 5 2 . 4 Open Door 1 | . . . 1 . Emergency Access Points 1 | . . 1 . . Terminal Index 1 | . . 1 . . Recycling Unit Index 1 | . . 1 . . Alert Level 2 | . 1 1 . . Unreport Threat 1 | . 1 . . . Surveillance Status 1 | . 1 . . . Recall Reinforcements 1 | . 1 . . . Hauler Manifests 1 | . . . . 1 Fabricator Hacks . | . . . . . Repair Station Hacks . | . . . . . Recycling Unit Hacks 4 | . . 4 . . Process 2 | . . 2 . . Report Inventory 1 | . . 1 . . Retrieve Matter 1 | . . 1 . . Scanalyzer . | . . . . . Garrison Access Hacks . | . . . . . Unauthorized Hacks . | . . . . . Terminals . | . . . . . Fabricators . | . . . . . Repair Stations . | . . . . . Recycling Units . | . . . . . Scanalyzers . | . . . . . Garrison Access . | . . . . . Data Cores Recovered . | . . . . . Used . | . . . . . Hacking Detections 12 | . 4 6 . 2 Full Trace Events . | . . . . . Feedback Events . | . . . . . Feedback Blocked . | . . . . . Robot Schematics Acquired . | . . . . . Robots Built . | . . . . . Authchips . | . . . . . Time . | . . . . . Total Robot Build Rating . | . . . . . Part Schematics Acquired . | . . . . . Parts Built . | . . . . . Authchips . | . . . . . Time . | . . . . . Total Part Build Rating . | . . . . . Parts Repaired . | . . . . . Time . | . . . . . Parts Recycled . | . . . . . Recycled Matter 16 | . . 16 . . Retrieved Matter 15 | . . 15 . . Retrieved Components . | . . . . . Parts Scanalyzed . | . . . . . Part Schematics Acquired . | . . . . . Parts Damaged . | . . . . . Bothacking | -11 -10 -9 -9 -8 ------------ Run | Scr Mat Mat Min Mat Used RIF Installer . | . . . . . Robots Hacked 1 | . 1 . . . Non-combat 1 | . 1 . . . Combat . | . . . . . Robot Hacks Applied 2 | . 2 . . . no_distress 1 | . 1 . . . check_alert 1 | . 1 . . . Relay Couplers Released . | . . . . . Fabnet Peak Effective % . | . . . . . Robots Rewired . | . . . . . Allies Hacked . | . . . . . Hacks Repelled . | . . . . . Allies | -11 -10 -9 -9 -8 -------- Run | Scr Mat Mat Min Mat Total Allies 1 | . . . 1 . Largest Group 1 | . . . 1 . Highest-Rated Group 31 | . . . 31 . Highest-Rated Ally 31 | . . . 31 . Total Orders . | . . . . . Ally Attacks . | . . . . . Total Damage . | . . . . . Kills . | . . . . . Allies Corrupted . | . . . . . Allies Melted . | . . . . . Intel | -11 -10 -9 -9 -8 ------- Run | Scr Mat Mat Min Mat Robot Analysis Total . | . . . . . Derelict Logs Recovered 1 | . . . 1 . Drone Launches . | . . . . . Drone Recoveries . | . . . . . Exploration | -11 -10 -9 -9 -8 ------------- Run | Scr Mat Mat Min Mat Turns Passed 1041 | 55 427 127 240 192 Spaces Moved 1780 | 37 521 299 671 252 Core 23 | 13 . . . 10 Treads . | . . . . . Legs 194 | 24 157 . . 13 Wheels . | . . . . . Hover 87 | . 87 . . . Flight 1476 | . 277 299 671 229 Fastest Speed 32 | 50 37 34 32 32 Average Speed 46 | 120 65 34 32 48 Slowest Speed 500 | 250 190 37 34 500 Overloaded Moves . | . . . . . Propulsion Burnouts . | . . . . . Robots Hopped 12 | . 2 2 3 5 Cave-ins Triggered . | . . . . . Exploration Rate (%) 49 | 4 84 26 99 35 Regions Visited 4 Branch Regions 1 Pre-discovered Areas . | . . . . . Known Exits Taken . | . . . . . Unknown Exits Taken 4 | 1 1 1 1 . Scrap Searched 2 | . . . 2 . Spaces Dug 74 | . 60 4 . 10 Terrain Destroyed 155 | . 111 4 . 40 Melee 4 | . . 4 . . Projectile . | . . . . . AOE 151 | . 111 . . 40 Terrain Rammed . | . . . . . Walls Destroyed . | . . . . . Machines Disabled . | . . . . . Actions | -11 -10 -9 -9 -8 --------- Run | Scr Mat Mat Min Mat Total 1937 | 44 583 316 685 309 Wait 22 | . 6 . . 16 Move 1754 | 36 516 294 664 244 Hop 10 | . 2 2 3 3 Pick Up 32 | 2 14 8 4 4 Fast Attach 18 | 6 3 . 1 8 Attach 20 | . 7 2 1 10 Detach 11 | . 2 . 2 7 Swap 7 | . 5 . 2 . Drop 26 | . 9 6 5 6 Fire 23 | . 15 . 3 5 Melee 14 | . 4 4 . 6 Ram . | . . . . . Kick . | . . . . . Crush . | . . . . . Escape Stasis . | . . . . . Rewire . | . . . . . Trap . | . . . . . Miscellaneous . | . . . . . Route ------- -11/Scrapyard -10/Materials (discovered 4 exits: *Mat x3 / [*Min]) -9/Materials -9/Mines (discovered 2 exits: *Mat x2) -8/Materials History --------- Turn | Location | Event 17 | -11/Scrapyard | Discovered new exit (range 15) 56 | -11/Scrapyard | Entered Materials 119 | -10/Materials | Discovered new exit (range 16) 289 | -10/Materials | Discovered new exit (range 16) 318 | -10/Materials | Build established: Mutant 318 | -10/Materials | Discovered new exit (range 16) 357 | -10/Materials | Discovered new exit (range 10) 367 | -10/Materials | Lost 3 parts (1p1n1w) 371 | -10/Materials | Core integrity fell below 50% 483 | -10/Materials | Entered another Materials area 483 | -9/Materials | Evolved 2 slots: Propulsion x1, Utility x1 569 | -9/Materials | Discovered new exit (range 12) 610 | -9/Materials | Entered Mines 612 | -9/Mines | Found the Drone Emporium 614 | -9/Mines | Found Prototype Device 642 | -9/Mines | A weapon hastily lodged in a ceiling crevice suddenly fell to the ground 667 | -9/Mines | Escorted by a lone wolf Derelict 708 | -9/Mines | Discovered new exit (range 10) 739 | -9/Mines | Found a hidden stash of uninstalled traps 757 | -9/Mines | Discovered new exit (range 5) 850 | -9/Mines | Entered Materials 850 | -8/Materials | Evolved 2 slots: Utility x2 850 | -8/Materials | Identified Decoy Drone Bay 983 | -8/Materials | Core integrity fell below 50% 1041 | -8/Materials | Core integrity fell below 20% 1042 | -8/Materials | Destroyed by H-55 Commando with Gauss Rifle Last Messages --------------- 01020_ K-01 Serf collects debris. 01021_ Penetrated by Slug. 01022_ U-05 Engineer destroyed. 01024_ Penetrated by Slug. 01024_ Aluminum Leg destroyed. 01026_ K-01 Serf collects debris. 01027_ Slug penetrates Fusion Modulator. 01030_ U-05 Engineer builds a Wall. 01030_ K-01 Serf collects debris. 01032_ K-01 Serf destroyed. 01033_ Penetrated by Slug. 01033_ Imp. Sensor Array destroyed. 01034_ U-05 Engineer lays Concrete. 01035_ U-05 Engineer builds a Wall. 01036_ Extracted 74 matter. 01038_ Mni. Grenade Launcher destroyed. 01039_ Penetrated by Slug. 01039_ U-05 Engineer builds a Wall. 01040_ Fusion Modulator explodes. 01041_ Penetrated by Slug. Map ----- +----------------------------------------------------+ | ## # [????# ??? #???????????? | | #! + ????# ??# #???????????? | | # # ########## ?????# #?# ###?????????? | | # " " # #????????????????# #?# #?????????? | | # "R"?# ###??????????????# ### +?????????? | | # """?# # #??????????????# #?????????? | | ####??# ???????????????# #?????????? | | #?????# ##???????????????# ##????????? | | ####### #????????????????# #????????? | | ################## #????????? | | #????????? | | ##################### #????????? | | ###########??????????# ????? # #????????? | | #????????????????????# ???? ### ###????????? | | #????????????????????# """ #?# #??????????? | | #????????????????????# """"" #?# #??????????? | | /????????????????????# """"" #?# #??????????? | | #????????????????????# """"" #?# #??????????? | | #????????????######??# " #?# #??????????? | | #???????????## ##? ###/#######????? | | #??????????## ? # """ #????? | | ??????????##;;;;;;;;;## ### "T" ##????? | | ??????????# ; = % xu #?????? | | ??????????# %% ## #?????? | | ??????????# =%% # #########?????? | | ??????????# @Y* # ##?????????????? | | ??????????# %#] #??????????????? | | ? ??????????# !! ! ## ????????? | | ??????????????# #??### ???????? | | ??????????????# h !! !#???????? ??????? | | ??????????????# #????????????????? | | ??????????????##;;;;;; # ###????????????????? | | ?????????????? # # [ ????????????????? | | ????????????? ?##### % ?????????????? | | ????????????? Y?????? %* a #????????????? | | ????????????????????# "" !! #????????????? | | ????????????????????###"T ! #????????????? | | ??????????????????????#"" #????????????? | | ??????????????????????# ????????????? | | ??????????????????????? ????????????? | | ????????????????????????/ """ ?????????????? | | ???????????????????????? "?? ???????????????? | | ????????????????????????? "??????????????????? | | ????????????????????????? ????????????????????? | | ?????????????????????????? ??????????????????????? | | ?????????????????????????????????????????????????? | | ?????????????????????????????????????????????????? | | ?????????????????????????????????????????????????? | | ?????????????????????????????????????????????????? | | ?????????????????????????????????????????????????? | +----------------------------------------------------+ Best States ------------- Heat Dissipation 31 Energy Generation 12 Energy Capacity 265 Matter Stores 280 Matter Capacity 300 Sight Range 16 Robot Scan Range 15 Terrain Scan Range 16 Terrain Scan Density 10 ECM Strength 1 Power Shielding 66 Propulsion Shielding 33 Evasion (%) 71 Offensive Hacking 10 Item Schematics ----------------- None Robot Schematics ------------------ None Fabricated ------------ Nothing Alien Tech Used ----------------- None Achievements -------------- Cya! GoHome() Challenges ------------ None Game ------ Seed MolecularNavigationPick Manual? 0 Play Time 01:28:48 Cumulative 12.9 hours Start 2022.05.12 @ 22:57:48 End 2022.05.13 @ 00:33:54 Sessions 1 Manual Loads 0 Difficulty Rogue Special Mode None Game No. 7 Rogue 5 Adventurer 0 Explorer 2 Win Type - Total 0 Types 0/0/0/0/0/0/0/0/0 Lore% 17 Gallery% 15 Achievement% 13 Wizard Run 0 Options --------- ASCII 0 Keyboard 0 Movement Numpad Keybinds 0 Fullscreen 1 Font 18/SmallcapsGlow Map View 76x50 Tactical HUD 1 Map Filters NONE Filters NONE Steam 1 RUN: efd1b0ea-05e9-44ed-9fe7-8dda60404534